bitfinex/quotes_SOLUSD_20250520
["timestamp","ask_amount","ask_price","bid_price","bid_amount"]
[1747762113250,20.9342664,167.19,167.12,18.64964886]
[1747762114650,14.95304743,167.19,167.12,18.64964886]
[1747762116170,20.9342664,167.19,167.12,18.64964886]
[1747762118969,20.9342664,167.19,167.16,18.64964886]
[1747762119369,20.9342664,167.19,167.16,45.54964886]
[1747762119565,20.9342664,167.19,167.16,75.32964886]
[1747762119566,5.98121897,167.19,167.16,75.32964886]
[1747762119765,5.97871577,167.26,167.2,18.64964886]
[1747762120277,14.94812452,167.25,167.2,18.64964886]
[1747762120873,14.94812452,167.25,167.21,26.9]
[1747762122274,14.94812452,167.25,167.22,18.64964886]
[1747762122978,20.92300334,167.28,167.22,18.64964886]
[1747762123364,38.09607127,167.28,167.22,18.64964886]
[1747762124478,20.92300334,167.28,167.22,18.64964886]
[1747762124683,20.92300334,167.28,167.22,48.42964886]
[1747762125782,38.09607127,167.28,167.22,48.42964886]
[1747762126483,17.17306793,167.27,167.22,29.78]
[1747762128083,20.92550519,167.26,167.22,29.78]
[1747762129755,38.09857312,167.26,167.22,29.78]
[1747762129970,17.17306793,167.25,167.22,29.78]
[1747762130373,5.97943075,167.24,167.22,29.78]
[1747762130685,17.17306793,167.23,167.18,52.9]
[1747762131572,50.82516143,167.24,167.18,26.0]
[1747762131573,17.17306793,167.22,167.18,26.0]
[1747762131774,67.99822936,167.24,167.18,26.0]
[1747762132563,38.10107557,167.24,167.18,26.0]
[1747762132884,20.92800764,167.24,167.18,26.0]
[1747762135377,5.97943075,167.24,167.19,18.64964886]
[1747762135685,5.97943075,167.24,167.2,26.9]
[1747762136467,20.92550519,167.26,167.2,26.9]
[1747762137375,20.92550519,167.26,167.21,18.64964886]
[1747762138784,14.94678942,167.26,167.21,18.64964886]
[1747762138991,17.17306793,167.24,167.19,18.64964886]
[1747762140471,17.17306793,167.25,167.19,18.64964886]
[1747762140795,20.92800764,167.24,167.19,18.64964886]
[1747762141588,5.97943075,167.24,167.19,18.64964886]
[1747762141789,5.97943075,167.24,167.2,8.1119]
[1747762141986,5.97943075,167.24,167.22,18.64964886]
[1747762142294,5.97943075,167.24,167.22,48.38964886]
[1747762142677,5.97871577,167.26,167.22,48.38964886]
[1747762143196,14.94641431,167.27,167.22,48.38964886]
[1747762144296,5.97764361,167.29,167.22,48.38964886]
[1747762144670,20.92175264,167.29,167.22,48.38964886]
[1747762147303,20.92175264,167.29,167.24,18.64964886]
[1747762147497,20.92175264,167.29,167.25,26.88]
[1747762149706,14.94410903,167.29,167.25,26.88]
[1747762150891,17.17306793,167.28,167.25,26.88]
[1747762151192,17.17306793,167.28,167.22,56.62]
[1747762151595,20.92425419,167.27,167.22,56.62]
[1747762152593,20.92425419,167.27,167.23,26.88]
[1747762152795,38.09732212,167.27,167.22,29.74]
[1747762154021,50.8160459,167.27,167.15,1.504]
[1747762154310,1.79616157,167.26,167.16,12.64]
[1747762154485,17.17306793,167.24,167.16,12.64]
[1747762154683,1.654,167.26,167.17,18.64964886]
[1747762155013,1.654,167.26,167.17,48.01015835]
[1747762155014,17.17306793,167.26,167.17,48.01015835]
[1747762155200,50.8160459,167.27,167.17,48.01015835]
[1747762155411,20.92425419,167.27,167.17,48.01015835]
[1747762155782,20.92425419,167.27,167.21,18.64964886]
[1747762155988,38.09732212,167.27,167.21,26.88]
[1747762156195,17.17306793,167.26,167.2,55.72]
[1747762156707,38.09732212,167.27,167.2,55.72]
[1747762158511,14.94589585,167.27,167.2,55.72]
[1747762158711,14.94589585,167.27,167.21,18.64964886]
[1747762162117,20.92425419,167.27,167.21,18.64964886]
[1747762162812,20.92425419,167.27,167.21,20.25184886]
[1747762163886,5.97764361,167.29,167.21,20.25184886]
[1747762164285,20.92175264,167.29,167.21,20.25184886]
[1747762164489,20.92175264,167.29,167.22,3.36553481]
[1747762164717,20.92175264,167.29,167.24,18.64964886]
[1747762166217,14.94410903,167.29,167.24,18.64964886]
[1747762167699,14.94410903,167.29,167.23,52.88]
[1747762168300,20.92175264,167.29,167.23,52.88]
[1747762169338,20.92175264,167.29,167.18,1.5037]
[1747762169339,17.17306793,167.26,167.18,1.5037]
[1747762169627,17.17306793,167.24,167.18,1.5037]
[1747762169800,17.17306793,167.24,167.19,12.63]
[1747762170004,26.0,167.2,167.19,12.63]
[1747762170219,20.9342664,167.19,167.15,8.46094591]
[1747762170419,20.9342664,167.19,167.09,26.88]
[1747762170625,20.9342664,167.19,167.1,18.64964886]
[1747762170816,20.9342664,167.19,167.11,12.64]
[1747762171017,20.9342664,167.19,167.14,26.0]
[1747762171424,20.9342664,167.19,167.15,18.64964886]
[1747762172235,14.95304743,167.19,167.15,18.64964886]
[1747762177951,5.98050355,167.21,167.15,20.28504886]
[1747762178151,20.93096269,167.22,167.15,20.28504886]
[1747762179134,20.93096269,167.22,167.17,18.64964886]
[1747762180650,20.93096269,167.22,167.19,18.64964886]
[1747762182344,14.95081678,167.22,167.19,18.64964886]
[1747762183034,14.95081678,167.22,167.18,26.9]
[1747762185611,14.95081678,167.22,167.15,20.28504886]
[1747762185817,14.95081678,167.22,167.16,18.64964886]
[1747762188044,14.95081678,167.22,167.14,18.64964886]
[1747762188239,32.12388471,167.22,167.14,18.64964886]
[1747762188419,32.12388471,167.22,167.15,26.9]
[1747762188916,17.17306793,167.21,167.15,26.9]
[1747762189346,20.93301435,167.2,167.15,26.9]
[1747762189936,38.10608228,167.2,167.14,26.0]
[1747762191250,68.0103885,167.2,167.14,26.0]
[1747762191646,17.17306793,167.19,167.14,26.0]
[1747762191844,17.17306793,167.19,167.13,29.72]
[1747762191845,68.0103885,167.2,167.13,56.62]
[1747762192019,20.93301435,167.2,167.14,18.64964886]
[1747762192217,20.93301435,167.2,167.14,44.64964886]
[1747762193635,29.89894157,167.23,167.14,44.64964886]
[1747762193636,50.82820066,167.23,167.14,44.64964886]
[1747762194052,50.82820066,167.23,167.15,3.36522521]
[1747762194422,20.92925909,167.23,167.17,26.0]
[1747762194656,20.92925909,167.23,167.19,18.64964886]
[1747762195656,14.94947078,167.23,167.19,18.64964886]
[1747762196553,14.94947078,167.23,167.18,26.9]
[1747762197728,14.94947078,167.23,167.19,18.64964886]
[1747762198655,14.94947078,167.23,167.18,26.9]
[1747762200959,5.97943075,167.24,167.19,18.64964886]
[1747762201164,5.97728631,167.3,167.23,18.64964886]
[1747762201461,5.97728631,167.3,167.23,75.58964886]
[1747762201771,5.97728631,167.3,167.25,18.64964886]
[1747762201934,5.97621466,167.33,167.28,26.0]
[1747762202266,20.90675585,167.41,167.29,75.58964886]
[1747762202567,20.90675585,167.41,167.33,18.64964886]
[1747762202728,20.90675585,167.41,167.34,26.9]
[1747762203129,20.90675585,167.41,167.35,18.64964886]
[1747762203441,20.90675585,167.41,167.35,48.44964886]
[1747762203829,5.97335881,167.41,167.35,48.44964886]
[1747762204034,5.97335881,167.41,167.35,74.44964886]
[1747762204341,5.97335881,167.41,167.38,18.64964886]
[1747762204540,5.97335881,167.41,167.4,18.64964886]
[1747762204756,15.3312565,167.42,167.4,18.64964886]
[1747762204955,5.97258314,167.44,167.42,18.64964886]
[1747762205941,14.93063262,167.45,167.41,26.88]
[1747762206333,68.31286515,167.45,167.41,26.88]
[1747762207057,26.0,167.42,167.41,26.88]
[1747762207385,53.38223253,167.42,167.41,26.88]
[1747762207557,53.38223253,167.42,167.36,26.88]
[1747762207900,20.90800477,167.4,167.36,18.64964886]
[1747762208662,20.90800477,167.4,167.35,26.88]
[1747762209175,78.15881555,167.4,167.34,18.64964886]
[1747762209377,50.77658302,167.4,167.34,18.64964886]
[1747762209851,78.15881555,167.4,167.34,45.52964886]
[1747762210376,50.77658302,167.4,167.34,45.52964886]
[1747762210958,27.38223253,167.39,167.34,45.52964886]
[1747762211479,78.15881555,167.4,167.34,45.52964886]
[1747762211658,27.38223253,167.38,167.34,26.88]
[1747762211863,5.9747864,167.37,167.34,26.88]
[1747762212387,20.9117524,167.37,167.3,18.64964886]
[1747762212565,20.9117524,167.37,167.34,18.64964886]
[1747762214657,14.936966,167.37,167.33,26.88]
[1747762215285,14.936966,167.37,167.34,18.64964886]
[1747762216386,14.936966,167.37,167.33,26.88]
[1747762216771,20.9117524,167.37,167.33,26.88]
[1747762217291,48.29398493,167.37,167.33,26.88]
[1747762217471,27.38223253,167.34,167.31,29.78]
[1747762217668,27.38223253,167.34,167.29,1.5834]
[1747762217987,27.38223253,167.36,167.3,18.64964886]
[1747762218282,27.38223253,167.35,167.29,1.5834]
[1747762218986,20.91550136,167.34,167.29,1.5834]
[1747762219192,20.91550136,167.34,167.3,18.64964886]
[1747762219394,5.97585753,167.34,167.3,18.64964886]
[1747762219689,5.9751434,167.36,167.31,0.14216157]
[1747762219880,5.9751434,167.36,167.33,18.64964886]
[1747762220078,5.9751434,167.36,167.33,101.14964886]
[1747762220889,50.77658302,167.4,167.33,101.14964886]
[1747762221073,50.77658302,167.4,167.33,18.64964886]
[1747762221772,78.15881555,167.4,167.33,18.64964886]
[1747762223882,50.77658302,167.4,167.33,18.64964886]
[1747762224586,50.77658302,167.4,167.33,101.14964886]
[1747762225565,27.38223253,167.39,167.33,101.14964886]
[1747762227274,27.38223253,167.34,167.29,84.0834]
[1747762227471,27.38223253,167.32,167.29,110.9634]
[1747762227664,27.38223253,167.32,167.29,109.38]
[1747762227971,27.38223253,167.32,167.29,26.88]
[1747762228167,50.78871891,167.36,167.3,18.64964886]
[1747762228375,78.17095144,167.36,167.3,18.64964886]
[1747762228772,50.78871891,167.36,167.3,18.64964886]
[1747762229173,20.9130019,167.36,167.29,109.38]
[1747762229370,5.9751434,167.36,167.3,18.64964886]
[1747762229578,14.93591249,167.39,167.3,44.64964886]
[1747762229804,14.93591249,167.39,167.33,6.4184]
[1747762230102,5.97371565,167.4,167.35,18.64964886]
[1747762230264,20.90800477,167.4,167.35,101.14964886]
[1747762230677,5.97371565,167.4,167.35,101.14964886]
[1747762231680,33.35523456,167.42,167.35,101.14964886]
[1747762231875,14.93428912,167.4,167.35,101.14964886]
[1747762234094,27.38223253,167.39,167.35,82.5]
[1747762234990,20.90800477,167.4,167.35,82.5]
[1747762235200,48.2902373,167.4,167.35,82.5]
[1747762237618,27.38223253,167.39,167.35,82.5]
[1747762238503,42.31652165,167.4,167.35,82.5]
[1747762238801,42.31652165,167.4,167.34,26.88]
[1747762239272,42.31652165,167.4,167.34,109.38]
[1747762239585,27.38223253,167.39,167.34,109.38]
[1747762239975,20.91050304,167.38,167.34,109.38]
[1747762241300,20.91050304,167.38,167.32,29.7]
[1747762241301,27.38223253,167.36,167.32,82.5]
[1747762241498,27.38223253,167.35,167.32,82.5]
[1747762241906,5.97585753,167.34,167.32,82.5]
[1747762243196,33.35809006,167.34,167.32,82.5]
[1747762243510,27.38223253,167.33,167.28,26.86]
[1747762243811,27.38223253,167.29,167.23,1.5682]
[1747762243977,27.38223253,167.27,167.23,1.5682]
[1747762244182,48.30523587,167.28,167.23,1.5682]
[1747762244586,48.30523587,167.28,167.24,3.35902928]
[1747762244994,27.38223253,167.27,167.24,3.35902928]
[1747762245281,48.30523587,167.28,167.24,3.35902928]
[1747762245985,27.38223253,167.27,167.22,128.00964886]
[1747762246191,27.38223253,167.25,167.21,26.88]
[1747762246386,27.38223253,167.23,167.16,6.4427]
[1747762246686,27.38223253,167.22,167.17,39.52]
[1747762246884,27.38223253,167.22,167.17,12.64]
[1747762247098,167.07964543,167.28,167.17,12.64]
[1747762247099,27.38223253,167.19,167.18,3.36128651]
[1747762247995,33.3634515,167.19,167.18,3.36128651]
[1747762248682,48.31649893,167.19,167.13,56.58]
[1747762248881,27.38223253,167.18,167.13,56.58]
[1747762249915,5.98193455,167.17,167.13,56.58]
[1747762251314,5.98166197,167.18,167.14,18.64964886]
[1747762251984,5.98121897,167.19,167.14,18.64964886]
[1747762252626,33.3634515,167.19,167.14,18.64964886]
[1747762252827,33.3634515,167.19,167.14,101.14964886]
[1747762252988,5.98121897,167.19,167.14,101.14964886]
[1747762253616,33.36166328,167.24,167.15,26.0]
[1747762253796,33.36166328,167.24,167.17,18.64964886]
[1747762254302,5.97943075,167.24,167.19,18.64964886]
[1747762254502,5.97943075,167.24,167.2,56.6]
[1747762255009,33.36166328,167.24,167.19,82.5]
[1747762255308,5.97943075,167.24,167.19,82.5]
[1747762258430,20.9269896,167.25,167.19,18.64964886]
[1747762258898,48.30922213,167.25,167.19,18.64964886]
[1747762260217,20.9269896,167.25,167.19,18.64964886]
[1747762260605,5.97907324,167.25,167.22,26.0]
[1747762260908,5.97800095,167.28,167.23,57.96]
[1747762261306,27.38223253,167.26,167.23,57.96]
[1747762261501,27.38223253,167.27,167.23,57.96]
[1747762261706,27.38223253,167.25,167.23,31.06]
[1747762261903,27.38223253,167.24,167.2,26.9]
[1747762262213,27.38223253,167.24,167.19,26.9]
[1747762262523,5.97943075,167.24,167.19,26.9]
[1747762263401,20.92688956,167.25,167.19,26.9]
[1747762263919,20.92688956,167.25,167.2,18.64964886]
[1747762264220,5.97907324,167.25,167.2,18.64964886]
[1747762265326,20.92675634,167.25,167.2,18.64964886]
[1747762265525,48.30898887,167.25,167.2,26.9]
[1747762265729,38.08017161,167.25,167.2,26.9]
[1747762266441,20.92675634,167.25,167.2,26.9]
[1747762266731,5.97907324,167.25,167.2,26.9]
[1747762267722,20.92565868,167.26,167.2,26.9]
[1747762269224,20.92565868,167.26,167.21,18.64964886]
[1747762269425,5.97871577,167.26,167.21,18.64964886]
[1747762269629,5.97800095,167.28,167.25,18.64964886]
[1747762269928,5.97800095,167.28,167.26,26.88]
[1747762270125,5.97692905,167.31,167.27,18.64964886]
[1747762270827,5.97585753,167.34,167.27,44.64964886]
[1747762271199,5.97585753,167.34,167.27,48.83437842]
[1747762271403,5.97585753,167.34,167.3,26.0]
[1747762271599,5.9747864,167.37,167.32,18.64964886]
[1747762271805,5.97371565,167.4,167.35,26.0]
[1747762272006,5.97371565,167.4,167.36,26.88]
[1747762272329,5.97371565,167.4,167.37,31.06]
[1747762272826,27.39758801,167.39,167.35,26.88]
[1747762273218,48.30559278,167.4,167.35,26.88]
[1747762273715,27.39758801,167.39,167.35,26.88]
[1747762274931,20.91050304,167.38,167.34,26.88]
[1747762276647,27.39758801,167.36,167.31,1.5982]
[1747762276936,50.78265024,167.38,167.31,26.88]
[1747762276937,5.97585753,167.34,167.31,26.88]
[1747762277133,33.37344554,167.34,167.31,26.88]
[1747762277303,48.31308937,167.34,167.28,76.56964886]
[1747762277508,27.39758801,167.33,167.29,12.63]
[1747762277780,27.39758801,167.31,167.23,6.3014]
[1747762277908,27.39758801,167.3,167.25,57.92]
[1747762278516,27.39758801,167.3,167.26,12.63]
[1747762278913,20.92175264,167.29,167.25,57.92]
[1747762279109,48.31934065,167.29,167.25,57.92]
[1747762279325,20.92175264,167.29,167.25,57.92]
[1747762279510,48.31934065,167.29,167.25,57.92]
[1747762279712,27.39758801,167.28,167.25,57.92]
[1747762280036,27.39758801,167.28,167.25,31.04]
[1747762280331,27.39758801,167.27,167.25,31.04]
[1747762280638,27.39758801,167.28,167.25,31.04]
[1747762280815,5.97835834,167.27,167.25,31.04]
[1747762281315,33.37594635,167.27,167.25,31.04]
[1747762281530,27.39758801,167.26,167.17,1.6412]
[1747762281734,27.39758801,167.2,167.18,12.64]
[1747762281957,27.39758801,167.21,167.15,64.0316]
[1747762282252,27.39758801,167.21,167.16,18.64964886]
[1747762282553,27.39758801,167.24,167.16,44.64964886]
[1747762282742,27.39758801,167.25,167.16,44.64964886]
[1747762282937,20.92800764,167.24,167.16,44.64964886]
[1747762283859,48.32559565,167.24,167.16,44.64964886]
[1747762284352,27.39758801,167.23,167.16,44.64964886]
[1747762285157,5.98014591,167.22,167.16,44.64964886]
[1747762285468,5.98014591,167.22,167.2,18.64964886]
[1747762285658,5.98014591,167.22,167.21,45.52964886]
[1747762285859,5.98014591,167.22,167.21,76.98964886]
[1747762286361,5.98014591,167.22,167.21,58.34]
[1747762287355,20.92704603,167.25,167.21,58.34]
[1747762287561,5.97907324,167.25,167.22,18.64964886]
[1747762289346,20.92366918,167.28,167.22,18.64964886]
[1747762289546,20.92366918,167.28,167.22,101.14964886]
[1747762289963,48.32125719,167.28,167.22,101.14964886]
[1747762290170,27.39758801,167.27,167.22,82.5]
[1747762291072,27.39758801,167.26,167.22,82.5]
[1747762291375,20.92366918,167.28,167.22,82.5]
[1747762291376,48.32434435,167.25,167.22,82.5]
[1747762291555,20.92675634,167.25,167.22,82.5]
[1747762291761,27.39758801,167.24,167.22,82.5]
[1747762291959,27.39758801,167.24,167.2,113.96]
[1747762292359,48.32434435,167.25,167.2,113.96]
[1747762292963,5.97907324,167.25,167.21,18.64964886]
[1747762293275,29.88684288,167.3,167.23,44.64964886]
[1747762293456,29.88684288,167.3,167.23,127.14964886]
[1747762293981,57.28443089,167.3,167.23,127.14964886]
[1747762294880,29.88684288,167.3,167.23,127.14964886]
[1747762295460,33.67696157,167.35,167.23,127.14964886]
[1747762295461,27.39758801,167.33,167.27,18.64964886]
[1747762295666,27.39758801,167.33,167.27,128.02964886]
[1747762295857,20.91550136,167.34,167.27,128.02964886]
[1747762296056,48.31308937,167.34,167.27,128.02964886]
[1747762296256,27.39758801,167.33,167.27,128.02964886]
[1747762297567,48.31558943,167.32,167.27,109.38]
[1747762297777,27.39758801,167.28,167.27,82.5]
[1747762297958,27.39758801,167.28,167.23,82.5]
[1747762298269,50.94302218,167.32,167.23,82.5]
[1747762298270,27.39758801,167.25,167.23,82.5]
[1747762299282,27.39758801,167.24,167.16,39.51]
[1747762299463,20.93301435,167.2,167.17,52.88]
[1747762299663,48.33060236,167.2,167.17,26.88]
[1747762299978,20.93301435,167.2,167.17,26.88]
[1747762300159,20.93301435,167.2,167.16,31.46]
[1747762300360,20.93301435,167.2,167.16,57.46]
[1747762300561,20.93301435,167.2,167.16,31.46]
[1747762300762,20.93301435,167.2,167.16,84.34]
[1747762301561,48.33060236,167.2,167.16,57.46]
[1747762302466,20.93301435,167.2,167.16,57.46]
[1747762302675,33.37844925,167.2,167.16,57.46]
[1747762302860,5.98086124,167.2,167.16,57.46]
[1747762304583,27.39758801,167.2,167.16,57.46]
[1747762304996,20.92990215,167.23,167.16,57.46]
[1747762305198,27.39758801,167.2,167.16,57.46]
[1747762305363,20.92990215,167.23,167.17,18.64964886]
[1747762305570,48.32749016,167.23,167.18,26.9]
[1747762305878,27.39758801,167.22,167.18,26.9]
[1747762306697,5.98050355,167.21,167.18,26.9]
[1747762307086,33.37809156,167.21,167.16,108.5]
[1747762307394,27.39758801,167.2,167.16,135.4]
[1747762308291,27.39758801,167.2,167.16,108.5]
[1747762308464,27.39758801,167.19,167.16,108.5]
[1747762308780,5.98157674,167.18,167.16,108.5]
[1747762310672,5.98121897,167.19,167.16,108.5]
[1747762311783,27.39758801,167.18,167.16,82.5]
[1747762313101,5.98193455,167.17,167.16,82.5]
[1747762313389,42.34827595,167.22,167.16,45.54964886]
[1747762313689,14.95068794,167.22,167.17,18.64964886]
[1747762313897,33.37737632,167.23,167.17,18.64964886]
[1747762314078,27.39758801,167.22,167.17,18.64964886]
[1747762314283,27.39758801,167.21,167.16,26.9]
[1747762314482,27.39758801,167.22,167.16,26.9]
[1747762314792,48.3268471,167.23,167.17,18.64964886]
[1747762314995,27.39758801,167.22,167.17,18.64964886]
[1747762315201,27.39758801,167.22,167.16,26.9]
[1747762316093,27.39758801,167.21,167.16,26.9]
[1747762316288,27.39758801,167.22,167.16,26.9]
[1747762316589,27.39758801,167.21,167.16,26.9]
[1747762317187,5.98050355,167.21,167.16,26.9]
[1747762318089,27.39758801,167.2,167.16,26.9]
[1747762318275,27.39758801,167.19,167.16,82.5]
[1747762319697,5.98157674,167.18,167.16,82.5]
[1747762319901,20.93551859,167.18,167.15,82.5]
[1747762320074,48.3331066,167.18,167.15,82.5]
[1747762320279,5.98157674,167.18,167.15,109.4]
[1747762320505,14.94935973,167.24,167.17,26.0]
[1747762320676,27.39758801,167.23,167.18,26.9]
[1747762321198,27.39758801,167.22,167.18,26.9]
[1747762321410,27.39758801,167.19,167.16,82.5]
[1747762321587,27.39758801,167.19,167.15,26.9]
[1747762321905,27.39758801,167.18,167.15,26.9]
[1747762322283,27.39758801,167.19,167.15,26.9]
[1747762322605,27.39758801,167.2,167.15,26.9]
[1747762323994,20.9342664,167.19,167.15,26.9]
[1747762325502,27.39758801,167.18,167.12,110.1259]
[1747762325701,27.39758801,167.17,167.12,137.0259]
[1747762326202,27.39758801,167.17,167.12,110.1259]
[1747762326404,27.39758801,167.16,167.12,110.1259]
[1747762326606,5.98265031,167.15,167.13,3.36939033]
[1747762327900,48.3368641,167.15,167.11,57.08]
[1747762329001,48.3368641,167.15,167.11,31.08]
[1747762329002,27.39758801,167.13,167.11,31.08]
[1747762329203,27.39758801,167.13,167.09,26.0]
[1747762329592,20.94178184,167.13,167.09,26.0]
[1747762329788,48.33936985,167.13,167.07,57.44624886]
[1747762329992,48.33936985,167.13,167.08,26.9]
[1747762330200,20.94178184,167.13,167.07,110.34624886]
[1747762330504,20.94178184,167.13,167.1,26.0]
[1747762330505,5.98336624,167.13,167.1,26.0]
[1747762330706,5.98336624,167.13,167.11,26.9]
[1747762330889,5.98265031,167.15,167.12,18.64964886]
[1747762331090,5.98157674,167.18,167.12,18.64964886]
[1747762331288,5.98157674,167.18,167.14,18.64964886]
[1747762331489,5.98157674,167.18,167.14,45.54964886]
[1747762331793,5.98086124,167.2,167.14,45.54964886]
[1747762332301,20.93301435,167.2,167.14,45.54964886]
[1747762332818,48.33060236,167.2,167.14,26.9]
[1747762334102,20.93301435,167.2,167.14,26.9]
[1747762334306,20.93301435,167.2,167.14,45.54964886]
[1747762335415,20.93301435,167.2,167.16,18.64964886]
[1747762335997,14.95215311,167.2,167.15,1.5805]
[1747762337316,5.98050355,167.21,167.16,18.64964886]
[1747762337525,5.98050355,167.21,167.16,44.64964886]
[1747762338021,20.92993208,167.23,167.16,44.64964886]
[1747762338209,27.39758801,167.22,167.16,44.64964886]
[1747762338407,20.92993208,167.23,167.16,44.64964886]
[1747762338915,20.92993208,167.23,167.19,26.0]
[1747762339105,5.97978831,167.23,167.2,26.9]
[1747762339306,5.97978831,167.23,167.21,18.64964886]
[1747762339815,20.92925909,167.23,167.2,26.9]
[1747762340015,27.39758801,167.22,167.16,18.64964886]
[1747762340208,27.39758801,167.22,167.17,26.9]
[1747762340415,48.3268471,167.23,167.17,26.9]
[1747762341000,27.39758801,167.22,167.17,26.9]
[1747762341812,26.0,167.21,167.17,26.9]
[1747762342008,20.93301435,167.2,167.17,26.9]
[1747762342411,5.98086124,167.2,167.18,18.64964886]
[1747762342723,20.93301435,167.2,167.15,90.1676]
[1747762342896,26.0,167.19,167.15,26.9]
[1747762343101,26.0,167.19,167.16,3.37783058]
[1747762343822,26.0,167.19,167.15,26.9]
[1747762344517,26.0,167.16,167.15,82.5]
[1747762345103,43.15792783,167.16,167.15,82.5]
[1747762345825,53.4716478,167.16,167.15,82.5]
[1747762346518,31.98229241,167.16,167.15,82.5]
[1747762347613,104.32113331,167.16,167.1,18.64964886]
[1747762347811,27.4716478,167.14,167.09,18.64964886]
[1747762348013,27.4716478,167.14,167.1,3.38532144]
[1747762348431,53.4716478,167.13,167.1,3.38532144]
[1747762348613,5.98372426,167.12,167.1,3.38532144]
[1747762349022,20.94303493,167.12,167.08,26.9]
[1747762350120,20.94303493,167.12,167.09,3.38421216]
[1747762351125,26.0,167.1,167.07,49.22964886]
[1747762351303,26.0,167.1,167.05,1.5364]
[1747762351504,26.0,167.1,167.06,26.9]
[1747762351705,53.4716478,167.1,167.05,1.5364]
[1747762352019,53.4716478,167.1,167.05,28.4364]
[1747762352215,53.4716478,167.1,167.06,3.38437334]
[1747762352415,26.0,167.09,167.06,3.38437334]
[1747762352932,5.98515681,167.08,167.06,3.38437334]
[1747762353138,5.98515681,167.08,167.06,85.88437334]
[1747762353728,5.98515681,167.08,167.06,82.5]
[1747762353923,20.94804883,167.08,167.01,82.5]
[1747762354126,48.41969663,167.08,167.02,58.19964886]
[1747762354313,48.41969663,167.08,167.02,39.55]
[1747762354810,48.41969663,167.08,167.02,26.9]
[1747762355136,48.41969663,167.08,167.03,3.37979515]
[1747762355736,20.94804883,167.08,167.03,3.37979515]
[1747762356030,20.94804883,167.08,167.02,26.9]
[1747762357229,56.81862134,167.12,167.04,1.6365]
[1747762357230,5.98444045,167.1,167.04,1.6365]
[1747762357543,6.4995,167.15,167.05,45.54964886]
[1747762357544,42.42978961,167.14,167.05,45.54964886]
[1747762357739,5.98265031,167.15,167.06,0.14216157]
[1747762358038,5.98265031,167.15,167.08,18.64964886]
[1747762358239,5.98265031,167.15,167.09,26.9]
[1747762358410,5.98265031,167.15,167.1,18.64964886]
[1747762359217,5.98229241,167.16,167.1,22.24030959]
[1747762359532,52.9,167.2,167.12,18.64964886]
[1747762359533,27.4716478,167.2,167.12,18.64964886]
[1747762359722,27.4716478,167.2,167.14,18.64964886]
[1747762360133,27.4716478,167.19,167.14,18.64964886]
[1747762360433,27.4716478,167.2,167.14,18.64964886]
[1747762361317,14.95200078,167.21,167.14,18.64964886]
[1747762361636,27.4716478,167.2,167.14,18.64964886]
[1747762362532,20.9342664,167.19,167.14,18.64964886]
[1747762363030,48.4059142,167.19,167.14,18.64964886]
[1747762363207,27.4716478,167.18,167.13,57.48]
[1747762363409,27.4716478,167.17,167.13,57.48]
[1747762363830,27.4716478,167.16,167.13,57.48]
[1747762364223,20.9342664,167.19,167.13,57.48]
[1747762364434,27.4716478,167.16,167.13,57.48]
[1747762364637,5.98265031,167.15,167.13,57.48]
[1747762364944,5.98265031,167.15,167.13,30.58]
[1747762365311,5.98265031,167.15,167.11,1.607]
[1747762365535,20.93927609,167.15,167.11,1.607]
[1747762367016,5.98265031,167.15,167.12,18.64964886]
[1747762367211,5.98265031,167.15,167.12,101.14964886]
[1747762367617,5.98265031,167.15,167.12,82.5]
[1747762368333,20.93927609,167.15,167.12,82.5]
[1747762368721,14.95662578,167.15,167.12,82.5]
[1747762369726,5.98229241,167.16,167.12,82.5]
[1747762370026,5.98229241,167.16,167.13,18.64964886]
[1747762370214,5.98229241,167.16,167.13,101.14964886]
[1747762370830,14.95434601,167.18,167.13,101.14964886]
[1747762371030,14.95434601,167.18,167.14,26.9]
[1747762373132,42.42599381,167.18,167.14,26.9]
[1747762374232,20.93176244,167.21,167.14,26.9]
[1747762374437,27.4716478,167.19,167.14,109.4]
[1747762374734,27.4716478,167.16,167.14,82.5]
[1747762375543,27.4716478,167.18,167.14,82.5]
[1747762376327,5.98193455,167.17,167.14,82.5]
[1747762377513,5.98086124,167.2,167.15,18.64964886]